Cogmind - Beta 12 @@@ ROGUE MODE // 2023.03.03 @ 19:09:07 Player: Plexion Result: Self-destructed Performance ------------- Evolutions (4) 2000 Regions Visited (11) 2200 Robots Destroyed (135) 675 Value Destroyed (4545) 4545 Prototype IDs (32) 640 Alien Tech Used (0) 0 Bonus (2032) 2032 TOTAL SCORE: 12092 Bonus ------- High Alert Combat Kills 397 Follower Combat Kills 152 Entered Garrisons 400 Used RIF Installer 1000 Aligned with FarCom 300 Friendly Fire -217 Cogmind --------- Core Integrity 800/850 Matter 275/300 Energy 100/100 System Corruption 2% Temperature Cool (0) Movement Flying (40) Location -6/Factory Parts ------- > --- POWER (1) -------- (None) > --- PROPULSION (3) --- Improved Flight Unit > --- UTILITY (9) ------ Machine Analyzer Transport Network Coupler System Shield Relay Coupler [NC] (27) Relay Coupler [Grunt] (31) Relay Coupler [Hunter] (14) Relay Coupler [Heavy] (12) > --- WEAPON (2) ------- Remote Datajack Makeshift Spear > --- INVENTORY (5) ---- Cloak of Protection Layered Light Armor Plating Authchip [Device] Relay Coupler [Grunt] (25) Mini Grenade Launcher Peak State ------------ > --- POWER ------------ (None) > --- PROPULSION ------- Improved Flight Unit Biomechanical Wings > --- UTILITY ---------- Machine Analyzer Transport Network Coupler Advanced Hacking Suite System Shield Relay Coupler [NC] Relay Coupler [Grunt] Relay Coupler [Sentry] Relay Coupler [Hunter] Relay Coupler [Heavy] > --- WEAPON ----------- Remote Datajack Makeshift Spear > --- INVENTORY -------- Cloak of Protection Layered Light Armor Plating Authchip [Device] Relay Coupler [Grunt] Mini Grenade Launcher [Rating: 51] Favorites ----------- Power Improved Ion Engine Engine Improved Ion Engine Power Core Neutrino Core Propulsion Light Treads Treads Light Treads Flight Unit Improved Flight Unit Utility High-capacity Storage Unit Device Kinecellerator Storage High-capacity Storage Unit Processor Improved Targeting Computer Hackware Hacking Suite Protection Light Armor Plating Weapon Light Assault Rifle Energy Gun Medium Laser Ballistic Gun Light Assault Rifle Ballistic Cannon Heavy Mass Driver Launcher Rocket Launcher Special Weapon Remote Datajack Piercing Weapon Makeshift Spear Special Melee Weapon Improved Datajack Build | -11 -10 -10 -10 -9 -8 -8 -8 -8 -7 -7 -6 ------- Run | Jun Mat Min Exi Min Mat Gar Mat Sto Fac Gar Fac Slots Evolved 8 | . . . . . 4 . . . 2 . 2 Power . | . . . . . . . . . . . . Propulsion 1 | . . . . . 1 . . . . . . Utility 7 | . . . . . 3 . . . 2 . 2 Weapon . | . . . . . . . . . . . . Parts Attached 120 | 6 7 2 1 2 41 12 4 7 14 18 6 Power 5 | 1 1 . . . 1 1 . . 1 . . Engine 4 | 1 1 . . . 1 . . . 1 . . Core 1 | . . . . . . 1 . . . . . Reactor . | . . . . . . . . . . . . Propulsion 21 | 2 2 . . . 7 2 2 1 3 1 1 Treads 14 | 2 1 . . . 7 2 1 1 . . . Leg . | . . . . . . . . . . . . Wheel . | . . . . . . . . . . . . Hover . | . . . . . . . . . . . . Flight 7 | . 1 . . . . . 1 . 3 1 1 Utility 35 | 1 2 . 1 . 8 2 . 2 5 9 5 Device 5 | . . . . . 1 . . 1 1 1 1 Storage 3 | 1 1 . 1 . . . . . . . . Processor 5 | . . . . . 2 . . . 1 1 1 Hackware 10 | . . . . . . 1 . . 2 4 3 Protection 12 | . 1 . . . 5 1 . 1 1 3 . Artifact . | . . . . . . . . . . . . Weapon 59 | 2 2 2 . 2 25 7 2 4 5 8 . Energy Gun 1 | . . . . . 1 . . . . . . Energy Cannon . | . . . . . . . . . . . . Ballistic Gun 28 | 2 1 1 . 1 12 3 . 3 4 1 . Ballistic Cannon 2 | . . . . . . 1 1 . . . . Launcher 11 | . 1 1 . 1 5 1 1 . . 1 . Special Weapon 3 | . . . . . . . . . . 3 . Impact Weapon . | . . . . . . . . . . . . Slashing Weapon . | . . . . . . . . . . . . Piercing Weapon 13 | . . . . . 7 2 . 1 1 2 . Special Melee Weapon 1 | . . . . . . . . . . 1 . Unidentified Prototypes 6 | . 1 . . . 2 . 1 . . . 2 Parts Lost 21 | . . . . . 3 3 . 5 . 8 2 Power 3 | . . . . . 1 1 . . . 1 . Propulsion 7 | . . . . . 1 1 . 2 . 3 . Utility 8 | . . . . . . 1 . 3 . 2 2 Weapon 3 | . . . . . 1 . . . . 2 . Highest Loss Streak 4 | . . . . . 1 3 . 2 . 4 2 To Critical Strikes 1 | . . . . . 1 . . . . . . Average Slot Usage (%) 90 | . 87 100 100 100 96 88 81 84 72 68 71 Engine 7 | . 14 14 14 14 8 6 . . 3 1 . Core 1 | . . . . . . 1 9 9 2 . . Treads 23 | . 28 28 28 28 25 27 27 25 2 . . Flight 1 | . . . . . . . . . 18 12 6 Device 2 | . . . . . 4 . . 4 3 . . Storage 9 | . 14 14 14 14 9 9 9 9 2 . . Processor 6 | . . . . . 9 9 9 9 12 13 8 Hackware 4 | . . . . . . 8 9 4 10 22 42 Protection 11 | . 2 14 14 14 20 9 9 5 1 4 . Ballistic Gun 16 | . 27 26 28 28 14 12 . 12 7 . . Piercing Weapon 2 | . . . . . 2 2 . 3 5 5 6 Naked Turns . | . . . . . . . . . . . . Heaviest Build 89 | 11 35 35 53 53 73 89 89 89 66 14 5 Greatest Support 67 | 40 40 40 40 40 62 67 67 67 47 15 5 Greatest Overweight (x) 1 | . . . 1 1 1 1 1 1 1 1 . Average Overweight (x) . | . . . . 1 . 1 1 . . . . Largest Inventory Capacity 20 | 8 15 15 20 20 20 20 20 20 20 5 5 Average Capacity 17 | 7 12 15 18 20 20 20 20 20 9 5 5 Most Carried 20 | 2 11 11 12 13 20 20 20 20 16 5 5 Average Carried 13 | 1 7 11 11 12 16 19 19 16 7 4 4 Final Capacity 20 | 8 15 15 20 20 20 20 20 20 5 5 5 Final Carried 20 | 2 11 11 12 13 20 20 20 15 5 5 5 Class Distribution -------------------- 92% | Mutant 5% | Bothacker-Mutant Dominant Class ---------------- Mutant | -10/Materials Mutant | -10/Mines Mutant | -10/Exiles Mutant | -9/Mines Mutant | -8/Materials Mutant | -8/Garrison Mutant | -8/Materials Mutant | -8/Storage Mutant | -7/Factory Bothacker-Mutant | -7/Garrison Bothacker-Mutant | -6/Factory Resources | -11 -10 -10 -10 -9 -8 -8 -8 -8 -7 -7 -6 ----------- Run | Jun Mat Min Exi Min Mat Gar Mat Sto Fac Gar Fac Matter Collected 3202 | 214 298 . . 139 848 456 27 605 84 428 103 Remotely . | . . . . . . . . . . . . Salvage Created 4798 | . 531 18 . 206 1515 660 55 1118 84 389 222 Parts 294 | . 33 . . 11 113 30 8 48 5 33 13 Haulers Intercepted 6 | . 1 . . . 4 . . . . . 1 Recyclers Shooed 4 | . 2 . . 1 . . . 1 . . . Parts Field Recycled . | . . . . . . . . . . . . Retrieved Matter . | . . . . . . . . . . . . Parts Self-Destructed . | . . . . . . . . . . . . Prevented . | . . . . . . . . . . . . Kills | -11 -10 -10 -10 -9 -8 -8 -8 -8 -7 -7 -6 ------- Run | Jun Mat Min Exi Min Mat Gar Mat Sto Fac Gar Fac Combat Hostiles Destroyed 94 | . 9 3 . 4 26 15 4 15 . 18 . Melee 7 | . . . . . 4 . . . . 3 . Guns 42 | . 9 . . 1 7 8 . 15 . 2 . Cannons 2 | . . . . . . . 2 . . . . AOE 43 | . . 3 . 3 15 7 2 . . 13 . Classes Destroyed 16 | . 5 1 . 2 3 1 . 1 . 3 . Worker 9 | . . . . . 5 . . 3 1 . . Builder 4 | . 1 . . . 2 . 1 . . . . Hauler 6 | . 1 . . . 4 . . . . . 1 Recycler 10 | . . . . 2 4 . . 2 1 . 1 Operator 5 | . 2 . . . 1 . . 1 . . 1 Watcher 9 | . 1 . . . 5 1 . 2 . . . Swarmer 28 | . . . . 4 12 3 2 . . 7 . Cutter 3 | . . . . . . . . . . 3 . Grunt 37 | . 9 . . . 7 6 . 11 . 4 . Brawler 2 | . . . . . . . . 2 . . . Duelist 1 | . . . . . . . . . . 1 . Sentry 14 | . . . . . 6 4 1 2 . 1 . Specialist 2 | . . . . . . 2 . . . . . Hunter 2 | . . . . . 1 . 1 . . . . Programmer 3 | . . . . . . . . . . 3 . Assembled 3 | . . 3 . . . . . . . . . Best Kill Streak 15 | . 3 3 . 3 7 7 4 7 1 15 2 Combat Bots Only 15 | . 2 3 . 3 6 7 3 6 . 15 . Max Kills in Single Turn 4 | . 1 2 . 3 4 2 2 2 1 2 1 Gunslinging 1 | . . . . . . . . 1 . . . Exploded 4 | . . 2 . 3 4 2 2 . . 2 . Melee 1 | . . . . . 1 . . . . 1 . Uniques/NPCs Destroyed . | . . . . . . . . . . . . Combat | -11 -10 -10 -10 -9 -8 -8 -8 -8 -7 -7 -6 -------- Run | Jun Mat Min Exi Min Mat Gar Mat Sto Fac Gar Fac Damage Taken 5026 | . 432 87 . 12 900 1189 184 784 . 1342 96 Core 994 | . 100 . . . 125 292 . 77 . 350 50 Absorbed by Shields 46 | . . . . . . . . . . 46 . Regen/Repaired (Parts) 98 | . . . . . 98 . . . . . . Core Remaining (%) 55 | 100 . . . 60 . . . 10 . 50 . Volleys Fired 263 | . 52 3 . 8 62 40 10 44 . 42 2 Largest 2 | . 2 2 . 2 2 2 1 2 . 2 1 Hottest 78 | . 40 40 . 40 78 75 75 75 . 48 5 Shots Fired 437 | . 103 4 . 15 110 67 10 82 . 44 2 Gun 369 | . 102 2 . 14 101 55 . 77 . 18 . Cannon 14 | . . . . . . 1 8 5 . . . Launcher 43 | . 1 2 . 1 9 11 2 . . 17 . Special 11 | . . . . . . . . . . 9 2 Kinetic 379 | . 102 2 . 14 97 56 8 82 . 18 . Thermal 6 | . . . . . 4 . . . . 2 . Explosive 43 | . 1 2 . 1 9 11 2 . . 17 . Electromagnetic . | . . . . . . . . . . . . Robot Hit Streak 31 | . 9 . . 6 12 27 10 31 . 11 3 Robot Miss Streak 5 | . 3 2 . 5 3 3 . 2 . 2 . Penetration Max 1 | . . . . . . . 1 . . . . Secondary Targets 4 | . . . . . . 1 . 3 . . . Max Gunslinging Chain 1 | . . . . . . 1 . 1 . . . Shots Hit Robots 344 | . 70 . . 7 88 51 5 69 2 45 7 Core Hits 229 | . 34 4 . 9 69 32 4 31 2 41 3 Critical Kills 2 | . 1 . . . . . . 1 . . . Critical Parts Destroyed . | . . . . . . . . . . . . Critical Strikes 8 | . 1 . . . 1 . . 1 . 4 1 Destroy 2 | . 1 . . . . . . 1 . . . Impale 6 | . . . . . 1 . . . . 4 1 Melee Attacks 137 | . . . . . 37 16 . 16 4 38 26 Impact . | . . . . . . . . . . . . Slashing . | . . . . . . . . . . . . Piercing 137 | . . . . . 37 16 . 16 4 38 26 Sneak Attacks 17 | . . . . . 7 . . 3 2 1 4 Combat Hostiles . | . . . . . . . . . . . . Follow-up Attacks . | . . . . . . . . . . . . Damage Inflicted 10963 | . 732 165 . 207 3274 1604 532 1782 118 2307 242 Guns 4748 | . 708 . . 75 1354 911 . 1374 . 326 . Cannons 563 | . . . . . . . 404 159 . . . Explosions 3817 | . 22 165 . 132 1160 693 128 . . 1517 . Melee 1802 | . . . . . 760 . . 246 118 436 242 Ramming 5 | . 2 . . . . . . 3 . . . Kinetic 5261 | . 708 . . 75 1304 911 404 1533 . 326 . Thermal 202 | . . . . . 174 . . . . 28 . Explosive 3583 | . 22 165 . 132 926 693 128 . . 1517 . Electromagnetic 110 | . . . . . 110 . . . . . . Impact . | . . . . . . . . . . . . Slashing . | . . . . . . . . . . . . Piercing 1802 | . . . . . 760 . . 246 118 436 242 Highest Corruption 7 | . . . . . . . 5 7 . 5 2 Average Corruption 5 | . . . . . . . 5 5 . 4 2 Corruption Purged . | . . . . . . . . . . . . Corruption Blocked . | . . . . . . . . . . . . Effects 64 | . . . . . . . 8 45 . 11 . Message Errors 20 | . . . . . . . . 18 . 2 . Matter Fused 12 | . . . . . . . 1 8 . 3 . Heat Flow Errors 1 | . . . . . . . . 1 . . . Energy Discharges 8 | . . . . . . . 2 6 . . . Parts Rejected 1 | . . . . . . . . 1 . . . Data Loss (minor) 12 | . . . . . . . 2 6 . 4 . Data Loss (major) 3 | . . . . . . . 1 . . 2 . Misfires 2 | . . . . . . . . 2 . . . Alerts 2 | . . . . . . . 2 . . . . Weapon Failures 3 | . . . . . . . . 3 . . . Overload Shots . | . . . . . . . . . . . . Overflow Damage 559 | . . 8 . . 115 5 33 245 . 102 51 Projectiles 161 | . . . . . . . 33 128 . . . Explosions 90 | . . 8 . . 47 5 . . . 30 . Melee 308 | . . . . . 68 . . 117 . 72 51 Knockbacks 1 | . . . . . . . 1 . . . . Impact . | . . . . . . . . . . . . Kinetic 1 | . . . . . . . 1 . . . . Secondary . | . . . . . . . . . . . . Self-Inflicted Damage 445 | . . 53 . . 119 21 . . . 252 . Shots 13 | . . 2 . . 3 1 . . . 7 . Rammed 3 | . 1 . . . . . . 2 . . . Targets Rammed 4 | . 1 . . . . . . 3 . . . Kicked . | . . . . . . . . . . . . Crushed 1 | . . . . . . . . 1 . . . Highest Temperature 190 | . 41 8 . 16 92 148 103 190 . 14 . Average Temperature 31 | . 8 6 . 7 23 61 40 43 . 7 . Received Heat Transfer 1460 | . 255 . . . 279 288 27 423 . 176 12 Siege Activations . | . . . . . . . . . . . . Robots Corrupted . | . . . . . . . . . . . . Combat Hostiles . | . . . . . . . . . . . . Parts Fried . | . . . . . . . . . . . . Impact Corruptions . | . . . . . . . . . . . . Robots Melted . | . . . . . . . . . . . . Combat Hostiles . | . . . . . . . . . . . . Parts Melted . | . . . . . . . . . . . . Heat Transferred 372 | . . . . . 298 . . . . 74 . Parts Sabotaged . | . . . . . . . . . . . . Parts Stolen . | . . . . . . . . . . . . Parts Stripped . | . . . . . . . . . . . . Power Chain Reactions 1 | . . . . . 1 . . . . . . Missiles Intercepted . | . . . . . . . . . . . . Alert | -11 -10 -10 -10 -9 -8 -8 -8 -8 -7 -7 -6 ------- Run | Jun Mat Min Exi Min Mat Gar Mat Sto Fac Gar Fac Peak Influence 920 | . 145 35 . 79 576 920 603 357 126 734 537 Initial 448 | . . 24 . . 1 374 448 169 114 88 385 Average 242 | . 73 32 . 1 215 677 453 159 117 526 430 Maximum Alert Level 3 | . . . . . 2 3 2 1 . 3 2 Low Security (%) 57 | 100 100 100 . 100 58 . . 62 100 16 . Level 1 11 | . . . . . 6 23 . 37 . 3 35 Level 2 24 | . . . . . 34 23 100 . . 54 64 Level 3 7 | . . . . . . 53 . . . 25 . Level 4 . | . . . . . . . . . . . . Level 5 . | . . . . . . . . . . . . High Security . | . . . . . . . . . . . . Max Security . | . . . . . . . . . . . . Squads Dispatched 14 | . 2 . . . 3 . 2 4 . . 3 Investigation 2 | . . . . . 1 . . . . . 1 Extermination . | . . . . . . . . . . . . Reinforcement 7 | . 2 . . . 1 . . 2 . . 2 Assault 4 | . . . . . . . 2 2 . . . Garrison 1 | . . . . . 1 . . . . . . Intercept . | . . . . . . . . . . . . Searches Triggered . | . . . . . . . . . . . . Construction Impeded . | . . . . . . . . . . . . Haulers Reinforced . | . . . . . . . . . . . . Active Scanning Responses . | . . . . . . . . . . . . Cargo Convoy Interrupts . | . . . . . . . . . . . . Stealth | -11 -10 -10 -10 -9 -8 -8 -8 -8 -7 -7 -6 --------- Run | Jun Mat Min Exi Min Mat Gar Mat Sto Fac Gar Fac Distress Signals 8 | . 1 . . . 3 . . 4 . . . Communications Jammed . | . . . . . . . . . . . . Distress Signals . | . . . . . . . . . . . . Times Spotted 144 | . 18 3 . 4 38 16 7 29 . 22 7 Peak Tracking Total 11 | . 4 3 . 2 8 5 5 10 . 11 3 Tactical Retreats 11 | . . . . . 3 2 . 4 . 1 1 Traps | -11 -10 -10 -10 -9 -8 -8 -8 -8 -7 -7 -6 ------- Run | Jun Mat Min Exi Min Mat Gar Mat Sto Fac Gar Fac Traps Triggered 12 | . . . . . . 6 . . 1 3 2 Indirectly . | . . . . . . . . . . . . Trap Hack Attempts . | . . . . . . . . . . . . Triggered . | . . . . . . . . . . . . Disarmed . | . . . . . . . . . . . . Reprogrammed . | . . . . . . . . . . . . Reused . | . . . . . . . . . . . . Traps Extracted . | . . . . . . . . . . . . Installed . | . . . . . . . . . . . . Triggered 1 | . . . . . . . . . . . 1 Machines | -11 -10 -10 -10 -9 -8 -8 -8 -8 -7 -7 -6 ---------- Run | Jun Mat Min Exi Min Mat Gar Mat Sto Fac Gar Fac Machines Disabled 13 | . . . . . 4 1 1 3 . 3 1 Max in Single Turn 1 | . . . . . 1 1 1 1 . 1 1 Garrison Relay 4 | . . . . . . 1 . . . 3 . Machines Repaired . | . . . . . . . . . . . . Machines Sabotaged . | . . . . . . . . . . . . Overloaded Fab Kills . | . . . . . . . . . . . . Hacking | -11 -10 -10 -10 -9 -8 -8 -8 -8 -7 -7 -6 --------- Run | Jun Mat Min Exi Min Mat Gar Mat Sto Fac Gar Fac Machines Accessed 34 | . 7 . 2 . 10 2 . 4 2 3 4 Terminals 28 | . 7 . . . 8 2 . 4 1 3 3 Fabricators 1 | . . . . . . . . . . . 1 Repair Stations 1 | . . . . . 1 . . . . . . Recycling Units . | . . . . . . . . . . . . Scanalyzers . | . . . . . . . . . . . . Garrison Access 2 | . . . . . 1 . . . 1 . . Total Hacks 89 | . 21 . 2 . 33 7 . 7 2 4 13 Successful 40 | . 10 . 2 . 16 2 . 2 1 1 6 Failed 49 | . 11 . . . 17 5 . 5 1 3 7 Catastrophic 9 | . 2 . . . 2 1 . 2 1 1 . Database Lockouts . | . . . . . . . . . . . . Manual 66 | . 19 . 1 . 28 1 . 5 1 3 8 Terminals 77 | . 21 . . . 28 7 . 7 1 4 9 Fabricators 4 | . . . . . . . . . . . 4 Repair Stations 4 | . . . . . 4 . . . . . . Recycling Units . | . . . . . . . . . . . . Scanalyzers . | . . . . . . . . . . . . Garrison Access 2 | . . . . . 1 . . . 1 . . Terminal Hacks 25 | . 9 . 2 . 6 2 . 2 . 1 3 Record 1 | . . . 1 . . . . . . . . Part Schematic 1 | . . . . . . . . . . . 1 Robot Analysis 7 | . 5 . . . 2 . . . . . . Prototype ID Bank 1 | . . . . . 1 . . . . . . Open Door 3 | . . . . . . 1 . 1 . 1 . Branch Access Points 1 | . 1 . . . . . . . . . . Emergency Access Points 1 | . . . . . . 1 . . . . . Terminal Index 1 | . . . . . . . . . . . 1 Unreport Threat 1 | . . . . . . . . 1 . . . Hauler Manifests 1 | . . . . . . . . . . . 1 Zone Layout 6 | . 3 . . . 3 . . . . . . EX-Prototype ID Bank 1 | . . . 1 . . . . . . . . Fabricator Hacks 2 | . . . . . . . . . . . 2 Network Status 1 | . . . . . . . . . . . 1 Load Schematic 1 | . . . . . . . . . . . 1 Repair Station Hacks 3 | . . . . . 3 . . . . . . Scan Component 2 | . . . . . 2 . . . . . . Repair 1 | . . . . . 1 . . . . . . Recycling Unit Hacks . | . . . . . . . . . . . . Scanalyzer . | . . . . . . . . . . . . Garrison Access Hacks 2 | . . . . . 1 . . . 1 . . Unlock Access 2 | . . . . . 1 . . . 1 . . Unauthorized Hacks 8 | . 1 . . . 6 . . . . . 1 Terminals 7 | . 1 . . . 6 . . . . . . Track 2 | . . . . . 2 . . . . . . Botnet 5 | . 1 . . . 4 . . . . . . Fabricators 1 | . . . . . . . . . . . 1 Recompile 1 | . . . . . . . . . . . 1 Repair Stations . | . . . . . . . . . . . . Recycling Units . | . . . . . . . . . . . . Scanalyzers . | . . . . . . . . . . . . Garrison Access . | . . . . . . . . . . . . Data Cores Recovered 1 | . . . . . . . . 1 . . . Used . | . . . . . . . . . . . . Hacking Detections 27 | . 6 . . . 8 2 . 3 2 2 4 Full Trace Events 2 | . . . . . 1 1 . . . . . Feedback Events . | . . . . . . . . . . . . Feedback Blocked . | . . . . . . . . . . . . Robot Schematics Acquired . | . . . . . . . . . . . . Robots Built . | . . . . . . . . . . . . Authchips . | . . . . . . . . . . . . Time . | . . . . . . . . . . . . Total Robot Build Rating . | . . . . . . . . . . . . Part Schematics Acquired 1 | . . . . . . . . . . . 1 Parts Built . | . . . . . . . . . . . . Authchips . | . . . . . . . . . . . . Time . | . . . . . . . . . . . . Total Part Build Rating . | . . . . . . . . . . . . Parts Repaired 1 | . . . . . 1 . . . . . . Time 36 | . . . . . 36 . . . . . . Parts Recycled . | . . . . . . . . . . . . Recycled Matter . | . . . . . . . . . . . . Retrieved Matter . | . . . . . . . . . . . . Retrieved Components . | . . . . . . . . . . . . Parts Scanalyzed . | . . . . . . . . . . . . Part Schematics Acquired . | . . . . . . . . . . . . Parts Damaged . | . . . . . . . . . . . . Bothacking | -11 -10 -10 -10 -9 -8 -8 -8 -8 -7 -7 -6 ------------ Run | Jun Mat Min Exi Min Mat Gar Mat Sto Fac Gar Fac Used RIF Installer 2 | . . . . . . 1 . . . 1 . Zone Cloak 1 | . . . . . . . . . . 1 . Robots Hacked 3 | . . . . . . . . . . 2 1 Non-combat . | . . . . . . . . . . . . Combat 3 | . . . . . . . . . . 2 1 Robot Hacks Applied 3 | . . . . . . . . . . 2 1 reboot_system 1 | . . . . . . . . . . . 1 overwrite_iff 1 | . . . . . . . . . . 1 . formatsys_high 1 | . . . . . . . . . . 1 . Relay Couplers Released 15 | . . . . . . 4 . . . 11 . Machine Destruction 15 | . . . . . . 4 . . . 11 . Attached 6 | . . . . . . . . . 1 4 1 Fabnet Peak Effective % . | . . . . . . . . . . . . Robots Rewired 6 | . . . . . . 2 . . . 3 1 Allies Hacked . | . . . . . . . . . . . . Hacks Repelled . | . . . . . . . . . . . . Allies | -11 -10 -10 -10 -9 -8 -8 -8 -8 -7 -7 -6 -------- Run | Jun Mat Min Exi Min Mat Gar Mat Sto Fac Gar Fac Total Allies 10 | . . . . . . 2 . 2 . 5 1 Largest Group 4 | . . . . . . 2 . 2 . 4 3 Highest-Rated Group 108 | . . . . . . 56 . 62 . 108 83 Highest-Rated Ally 32 | . . . . . . 31 . 31 . 32 32 Total Orders . | . . . . . . . . . . . . Ally Attacks 43 | . . . . . . 16 . 11 . 4 12 Total Damage 996 | . . . . . . 269 . 168 . 206 353 Kills 9 | . . . . . . 3 . 1 . 1 4 Allies Corrupted . | . . . . . . . . . . . . Allies Melted . | . . . . . . . . . . . . Intel | -11 -10 -10 -10 -9 -8 -8 -8 -8 -7 -7 -6 ------- Run | Jun Mat Min Exi Min Mat Gar Mat Sto Fac Gar Fac Robot Analysis Total 7 | . 5 . . . 2 . . . . . . Derelict Logs Recovered 2 | . . . . 2 . . . . . . . Drone Launches . | . . . . . . . . . . . . Drone Recoveries . | . . . . . . . . . . . . Exploration | -11 -10 -10 -10 -9 -8 -8 -8 -8 -7 -7 -6 ------------- Run | Jun Mat Min Exi Min Mat Gar Mat Sto Fac Gar Fac Turns Passed 10513 | 97 1083 148 615 1377 3298 1025 432 1341 108 615 374 Spaces Moved 5122 | 56 550 43 283 490 1222 356 152 500 168 649 653 Core 2 | 2 . . . . . . . . . . . Treads 3658 | 54 550 43 283 490 1222 356 152 500 8 . . Legs . | . . . . . . . . . . . . Wheels . | . . . . . . . . . . . . Hover . | . . . . . . . . . . . . Flight 1462 | . . . . . . . . . 160 649 653 Fastest Speed 34 | 50 160 160 160 240 160 235 243 163 34 34 40 Average Speed 167 | 156 160 160 217 240 233 236 243 222 44 36 40 Slowest Speed 245 | 160 160 160 240 240 240 243 245 245 245 110 40 Overloaded Moves . | . . . . . . . . . . . . Propulsion Burnouts . | . . . . . . . . . . . . Robots Hopped 4 | . . . . . . . . . 1 . 3 Cave-ins Triggered . | . . . . . . . . . . . . Exploration Rate (%) 47 | 5 82 9 69 88 85 51 21 73 7 69 16 Regions Visited 11 Branch Regions 4 Pre-discovered Areas 2 | . . . 1 . . . . 1 . . . Known Exits Taken 3 | . 1 . . . 1 . . . 1 . . Unknown Exits Taken 6 | 1 . 1 1 1 . . 1 1 . . . Scrap Searched 2 | . . . . 2 . . . . . . . Spaces Dug 69 | . . 13 . 9 15 2 3 6 2 2 17 Terrain Destroyed 281 | . 5 13 . 9 76 21 21 6 2 111 17 Melee 42 | . . . . . 14 1 . 6 2 2 17 Projectile 5 | . . . . . . 1 4 . . . . AOE 234 | . 5 13 . 9 62 19 17 . . 109 . Terrain Rammed . | . . . . . . . . . . . . Walls Destroyed . | . . . . . . . . . . . . Machines Disabled . | . . . . . . . . . . . . Actions | -11 -10 -10 -10 -9 -8 -8 -8 -8 -7 -7 -6 --------- Run | Jun Mat Min Exi Min Mat Gar Mat Sto Fac Gar Fac Total 6508 | 63 661 118 285 677 1533 465 205 624 203 941 733 Wait 672 | . 35 71 . 177 131 9 32 54 . 138 25 Move 5105 | 55 549 42 282 489 1222 355 151 499 166 648 647 Hop 4 | . . . . . . . . . 1 . 3 Pick Up 45 | 2 10 . 1 1 18 5 2 . 1 4 1 Fast Attach 36 | 6 3 . . . 6 2 3 1 3 7 5 Attach 31 | . 1 . . . 6 2 1 5 10 5 1 Detach 20 | . 3 . . . 3 1 1 . 6 5 1 Swap 53 | . 3 2 1 2 29 8 . 1 1 6 . Drop 50 | . 4 . 1 . 19 5 5 1 11 2 2 Fire 263 | . 52 3 . 8 62 40 10 44 . 42 2 Melee 137 | . . . . . 37 16 . 16 4 38 26 Ram . | . . . . . . . . . . . . Kick . | . . . . . . . . . . . . Crush 4 | . 1 . . . . . . 3 . . . Escape Stasis 74 | . . . . . . 8 . . . 46 20 Rewire 14 | . . . . . . 14 . . . . . Trap . | . . . . . . . . . . . . Miscellaneous . | . . . . . . . . . . . . Route ------- -11/Junkyard -10/Materials (discovered 3 exits: [*Mat x2] / *Min) -10/Mines -10/Exiles -9/Mines -8/Materials (discovered 3 exits: *Fac / *Sto / Gar) -8/Garrison -8/Materials -8/Storage -7/Factory -7/Garrison (discovered 3 exits: *Fac x3) -6/Factory (discovered 1 exit: [*Low]) History --------- Turn | Location | Event 2 | -11/Junkyard | Met Revision 17 6 | -11/Junkyard | Discovered new exit (range 16) 98 | -11/Junkyard | Entered Materials 308 | -10/Materials | Build established: Mutant 492 | -10/Materials | Discovered new exit (range 16) 529 | -10/Materials | Identified exit to Mines 745 | -10/Materials | Discovered new exit (range 16) 1181 | -10/Materials | Entered Mines 1187 | -10/Mines | Assembled infested the area 1256 | -10/Mines | Deemed a non-threat by the Exiles lab entrance 1256 | -10/Mines | Discovered new exit (range 5) 1329 | -10/Mines | Entered Exiles 1369 | -10/Exiles | Met 8R-AWN 1395 | -10/Exiles | Met EX-HEX 1504 | -10/Exiles | Met EX-DEC 1547 | -10/Exiles | Learned location of Zion (-6) 1595 | -10/Exiles | Met EX-BIN 1629 | -10/Exiles | Aligned with FarCom system 1631 | -10/Exiles | Given EX-Vault access code 1691 | -10/Exiles | Opened EX-Vault 1711 | -10/Exiles | Found Cloak of Protection 1762 | -10/Exiles | Warned to stay clear of 0b10 Research branches 1918 | -10/Exiles | Discovered new exit (range 14) 1944 | -10/Exiles | Left Exiles lab with Cloak of Protection 1944 | -10/Exiles | Entered Mines 2026 | -9/Mines | Met a Derelict bent on vengeance 2350 | -9/Mines | Learned Materials emergency access door positions 2403 | -9/Mines | A weapon hastily lodged in a ceiling crevice suddenly fell to the ground 2835 | -9/Mines | Learned Materials terminal intel 3156 | -9/Mines | Discovered new exit (range 9) 3321 | -9/Mines | Entered Materials 3321 | -8/Materials | Evolved 4 slots: Propulsion x1, Utility x3 3323 | -8/Materials | Loaded intel: 12 terminal locations 3668 | -8/Materials | Repaired Broken Lgt. Treads 4735 | -8/Materials | Discovered new exit (range 10) 5428 | -8/Materials | Discovered new exit (range 14) 6523 | -8/Materials | Garrison activated, responded to threat 6619 | -8/Materials | Identified exit to Garrison 6619 | -8/Materials | Entered Garrison 6798 | -8/Garrison | Triggered checkpoint 6843 | -8/Garrison | Installed Relay Interface Framework 6920 | -8/Garrison | Garrison Relay disabled 7130 | -8/Garrison | Destroyed 7 combat bots 7314 | -8/Garrison | Discovered new exit (range 10) 7384 | -8/Garrison | Core integrity fell below 50% 7436 | -8/Garrison | Lost 3 parts (1p1n1u) 7644 | -8/Garrison | Entered Materials 8044 | -8/Materials | First assault squad dispatched 8054 | -8/Materials | Discovered new exit (range 10) 8076 | -8/Materials | Entered Storage 8677 | -8/Storage | Met a pair of Derelict thieves 8713 | -8/Storage | Learned location of Armory (-3) 8752 | -8/Storage | Core integrity fell below 20% 9381 | -8/Storage | Discovered new exit (range 16) 9417 | -8/Storage | Entered Factory 9417 | -7/Factory | Evolved 2 slots: Utility x2 9525 | -7/Factory | Identified exit to Garrison 9525 | -7/Factory | Entered Garrison 9618 | -7/Garrison | Triggered checkpoint 9620 | -7/Garrison | Triggered checkpoint 9672 | -7/Garrison | Lost 3 parts (1p1n1u) 9700 | -7/Garrison | Destroyed 15 combat bots 9701 | -7/Garrison | Expanded RIF knowledge: Zone Cloak 9781 | -7/Garrison | Lost 4 parts (1n1u2w) 9823 | -7/Garrison | Garrison Relay disabled 9834 | -7/Garrison | Garrison Relay disabled 9846 | -7/Garrison | Discovered new exit (range 10) 9909 | -7/Garrison | Discovered new exit (range 10) 9936 | -7/Garrison | Triggered checkpoint 9947 | -7/Garrison | Discovered new exit (range 13) 9968 | -7/Garrison | Triggered checkpoint 9983 | -7/Garrison | Garrison Relay disabled 10089 | -7/Garrison | Build established: Bothacker-Mutant 10140 | -7/Garrison | Entered Factory 10140 | -6/Factory | Accompanied by 2 allies 10140 | -6/Factory | Evolved 2 slots: Utility x2 10238 | -6/Factory | Discovered new exit (range 5) 10514 | -6/Factory | Self-destructed Last Messages --------------- 10480_ Field strength at 50. 10481_ Field strength at 45. 10482_ Field strength at 40. 10483_ Field strength at 35. 10484_ Field strength at 30. 10485_ Field strength at 25. 10486_ Field strength at 20. 10487_ Field strength at 15. 10488_ Field strength at 10. 10489_ Field strength at 5. 10490_ Stasis field depleted. 10493_ >> Machine Analyzer network decryption results: 10493_ DSF Access x1 10495_ Slug penetrates K-01 Serf. 10505_ Slug penetrates Wall. 10511_ Triggered Stasis Trap. 10511_ A bubble of rippling energy engulfs the area. 10511_ Field strength at 95. 10512_ Field strength at 90. 10513_ Field strength at 85. Map ----- +----------------------------------------------------+ | ?????????????????????????????????????????????????? | | ?????????????????????????????????????????????????? | | ????"""?"""????????? ?????????????????????????? | | #???"""?"""???????? ?????????????????????????? | | #???"""?"""?????? ?????????????????????????? | | #??????????????? ????????????????????????? | | #+############# ????????????????????????? | | # ???????????????????????? | | #^ ???????????????????????? | | + h ???????????????????????? | | #^ """?"""?"""?"""?????????? | | # """?"""?"""?"""?????????? | | ####+#################h """?"""?"""?"""?????????? | | # #???????# ?? ??????????????????? | | # #???????# u """ """?"""?"""?????????? | | # #???????# """ """?"""?"""?????????? | | # #???????# """ """?"""?"""?????????? | | # ######### ???????????????????? | | # # # ????????????????????? | | # # # #?????????????????????? | | # ! # """ # #?????????????????????? | | # # """ # #???????T?????????????? | | # # """ # #?????????????????????? | | # # + #?????????????????????? | | # * # """ # #?????????????????????? | | ############"" """ # @ #?????????????????????? | | #??????????### """ # #?????????????????????? | | ##???????????# # #?????????????????????? | | "#???????????# #k ????????????????????? | | ##???????????######### ???????????????????? | | #????????????????????# ??????????????????? | | #????????????????????# ????????????????? | | #???????"""?????????? ???????????????? | | #???????"""?????????####+#######+#???????????????? | | #???????"""??????????????????????????????????????? | | ?????????????????????????????????????????????????? | | ?????????????????????????????????????????????????? | | ?????????????????????????????????????????????????? | | ?????????????????????????????????????????????????? | | ?????????????????????????????????????????????????? | | ?????????????????????????????????????????????????? | | ?????????????????????????????????????????????????? | | ?????????????????????????????????????????????????? | | ?????????????????????????????????????????????????? | | ?????????????????????????????????????????????????? | | ?????????????????????????????????????????????????? | | ?????????????????????????????????????????????????? | | ?????????????????????????????????????????????????? | | ?????????????????????????????????????????????????? | | ?????????????????????????????????????????????????? | +----------------------------------------------------+ Best States ------------- Heat Dissipation 37 Energy Generation 19 Energy Capacity 315 Matter Stores 300 Matter Capacity 300 Sight Range 16 Terrain Scan Density 10 Cloak Strength 5 Armor Coverage 600 Evasion (%) 63 Targeting Accuracy 6 Target Analysis 5 Recoil Reduction 3 Kinecelleration 30 Offensive Hacking 24 Defensive Hacking 10 Relay Coupler Types 5 Relay Coupler Value 89 Authchip Count 1 Item Schematics ----------------- Stasis Canceller | -6/Factory | Hacked Robot Schematics ------------------ None Fabricated ------------ Nothing Alien Tech Used ----------------- None Achievements -------------- None Challenges ------------ None Game ------ Seed PotentialArcBoregun Manual? 0 Play Time 00:59:48 Cumulative 326.8 hours Start 2023.03.03 @ 18:09:34 End 2023.03.03 @ 19:09:07 Sessions 1 Manual Loads 0 Difficulty Rogue Special Mode None Game No. 430 Rogue 343 Adventurer 87 Explorer 0 Win Type - Total 12 Types 6/0/4/1/1/0/0/0/0 Lore% 85 Gallery% 86 Achievement% 73 Wizard Run 0 Options --------- ASCII 0 Keyboard 1 Movement Numpad Keybinds 0 Fullscreen 1 Font 18/SmallcapsGlow Map View 76x50 Tactical HUD 1 Map Filters NONE Filters NONE Steam 1 RUN: 4362fd75-a068-40cd-a1fd-b83c7945d0bb